Workbook

Sheet 開始
B1: 關於此範本
B2: 請使用此客戶獲利分析來追蹤客戶活躍程度、銷售成本和其他成本。
B3: 請在表格中填入公司名稱、日期和詳細資料等資訊。
B4: 系統會自動計算含有公式之儲存格與摘要指標表格中的值，並更新圖表。
B5: 附註：
B6: 我們已在 [客戶獲利率] 工作表的欄 A 提供額外指示。此文字已刻意隱藏。若要移除文字，請選取欄 A，然後選取 [刪除]。若要取消隱藏文字，請選取欄 A，然後變更字型色彩。
B7: 若要深入了解此工作表中的表格，請在表格內按 SHIFT 並按 F10，選取 [表格] 選項，然後選取 [替代文字]。

Sheet 客戶獲利率
A1: 在此工作表中建立客戶獲利分析。您可以在此欄的儲存格中找到有關如何使用此工作表的實用指示。按向下箭號以開始。
A2: 在右側儲存格中輸入公司名稱。 | B2: 公司名稱
A3: 右側儲存格為此工作表的標題。 | B3: 客戶獲利分析
A4: 在右側儲存格中輸入日期。 | B4: 日期
A5: 右側儲存格為提示。 | B5: 系統會為您計算灰色儲存格。您不需要在其中輸入任何內容。
A6: 在 [客戶活躍程度] 表格 (從右側儲存格開始) 中輸入詳細資料。下一個指示位於儲存格 A12。 | B6: 客戶活躍程度： | C6: 客群名稱 1 | D6: 客群名稱 2 | E6: 客群名稱 3 | F6: 整體
B7: 活躍客戶數量 - 期初 | C7: 5 | D7: 8 | E7: 8 | F7: =SUM(C7:E7) -> 21
B8: 新增客戶數量 | C8: 2 | D8: 4 | E8: 4 | F8: =SUM(C8:E8) -> 10
B9: 損失/終止客戶數量 | C9: (1) | D9: (2) | E9: (2) | F9: =SUM(C9:E9) -> (5)
B10: 活躍客戶數量 - 期末 | C10: =SUBTOTAL(109,客戶活躍程度[客群名稱 1]) -> 6 | D10: =SUBTOTAL(109,客戶活躍程度[客群名稱 2]) -> 10 | E10: =SUBTOTAL(109,客戶活躍程度[客群名稱 3]) -> 10 | F10: =SUBTOTAL(109,客戶活躍程度[整體]) -> 26
A12: 在 [獲利分析] 表格 (從右側儲存格開始) 中輸入詳細資料。下一個指示位於儲存格 A16。 | B12: 獲利分析： | C12: 客群名稱 1 | D12: 客群名稱 2 | E12: 客群名稱 3 | F12: 整體
B13: 各客群收益 | C13: NT$1,500,000.00 | D13: NT$1,800,000.00 | E13: NT$2,500,000.00 | F13: =SUM(獲利分析[[#This Row],[客群名稱 1]:[客群名稱 3]]) -> NT$5,800,000.00
B14: 加權 | C14: =+C13/$F$13 -> 26% | D14: =+D13/$F$13 -> 31% | E14: =+E13/$F$13 -> 43% | F14: =SUM(獲利分析[[#This Row],[客群名稱 1]:[客群名稱 3]]) -> 100%
A16: 在 [銷售成本] 表格 (從右側儲存格開始) 中輸入詳細資料。下一個指示位於儲存格 A23。 | B16: 銷售成本： | C16: 客群名稱 1 | D16: 客群名稱 2 | E16: 客群名稱 3 | F16: 整體
B17: 持續服務與支援成本 | C17: NT$1,000,000.00 | D17: NT$1,400,000.00 | E17: NT$1,400,000.00 | F17: =SUM(C17:E17) -> NT$3,800,000.00
B18: 其他直接客戶成本 | C18: NT$200,000.00 | D18: NT$100,000.00 | E18: NT$100,000.00 | F18: =SUM(C18:E18) -> NT$400,000.00
B19: 總銷售成本 | C19: =SUM(C17:C18) -> NT$1,200,000.00 | D19: =SUM(D17:D18) -> NT$1,500,000.00 | E19: =SUM(E17:E18) -> NT$1,500,000.00 | F19: =SUM(F17:F18) -> NT$4,200,000.00
B20: 毛利 | C20: =+C13-C19 -> NT$300,000.00 | D20: =+D13-D19 -> NT$300,000.00 | E20: =+E13-E19 -> NT$1,000,000.00 | F20: =+F13-F19 -> NT$1,600,000.00
B21: 加權 | C21: =MAX(0, MIN(1,C20/$F$20)) -> 19% | D21: =MAX(0, MIN(1,D20/$F$20)) -> 19% | E21: =MAX(0, MIN(1,E20/$F$20)) -> 63% | F21: =SUM(C21:E21) -> 100%
A23: 在 [其他成本] 表格 (從右側儲存格開始) 中輸入詳細資料。下一個指示位於儲存格 A31。 | B23: 其他成本： | C23: 客群名稱 1 | D23: 客群名稱 2 | E23: 客群名稱 3 | F23: 整體
B24: 客戶獲取成本 | C24: NT$105,000.00 | D24: NT$120,000.00 | E24: NT$235,000.00 | F24: =SUM(其他成本[[#This Row],[客群名稱 1]:[客群名稱 3]]) -> NT$460,000.00
B25: 客戶行銷成本 | C25: NT$150,000.00 | D25: NT$125,000.00 | E25: NT$275,000.00 | F25: =SUM(C25:E25) -> NT$550,000.00
B26: 客戶終止成本 | C26: NT$80,000.00 | D26: NT$190,000.00 | E26: NT$140,000.00 | F26: =SUM(C26:E26) -> NT$410,000.00
B27: 其他客戶總成本 | C27: =SUM(C24:C26) -> NT$335,000.00 | D27: =SUM(D24:D26) -> NT$435,000.00 | E27: =SUM(E24:E26) -> NT$650,000.00 | F27: =SUM(F24:F26) -> NT$1,420,000.00
B28: 各客群客戶獲利 | C28: =+C20-C27 -> (NT$35,000.00) | D28: =+D20-D27 -> (NT$135,000.00) | E28: =+E20-E27 -> NT$350,000.00 | F28: =SUM(C28:E28) -> NT$180,000.00
B29: 加權 | C29: =MAX(0,MIN(1, C28/$F$28)) -> 0% | D29: =MAX(0,MIN(1, D28/$F$28)) -> 0% | E29: =MAX(0,MIN(1, E28/$F$28)) -> 100% | F29: =SUM(C29:E29) -> 100%
A31: 系統會自動更新從右側儲存格開始的 [摘要指標] 表格。下一個指示位於儲存格 A37。 | B31: 摘要指標： | C31: 客群名稱 1 | D31: 客群名稱 2 | E31: 客群名稱 3 | F31: 趨勢
B32: 每獲得一位客戶之平均成本 | C32: =+C24/C8 -> NT$52,500.00 | D32: =+D24/D8 -> NT$30,000.00 | E32: =+E24/E8 -> NT$58,750.00
B33: 每終止一位客戶之平均成本 | C33: =-C26/C9 -> NT$80,000.00 | D33: =-D26/D9 -> NT$95,000.00 | E33: =-E26/E9 -> NT$70,000.00
B34: 每位活躍客戶之平均行銷成本 | C34: =+C26/客戶活躍程度[[#Totals],[客群名稱 1]] -> NT$13,333.33 | D34: =+D25/客戶活躍程度[[#Totals],[客群名稱 2]] -> NT$12,500.00 | E34: =+E25/客戶活躍程度[[#Totals],[客群名稱 3]] -> NT$27,500.00
B35: 每位客戶之平均獲益 (損失) | C35: =+C29/客戶活躍程度[[#Totals],[客群名稱 1]] -> NT$0.00 | D35: =+D28/客戶活躍程度[[#Totals],[客群名稱 2]] -> (NT$13,500.00) | E35: =+E28/客戶活躍程度[[#Totals],[客群名稱 3]] -> NT$35,000.00
A37: 右側儲存格為顯示各客群摘要指標的群組直條圖。 | B37: 此儲存格為顯示各客群摘要指標的群組直條圖。
